bitfinex-derivatives/quotes_ETHF0:USTF0_20250214
["timestamp","ask_amount","ask_price","bid_price","bid_amount"]
[1739530348123,40.8,2706.0,2705.9,0.00369078]
[1739530348323,40.8,2706.0,2705.9,0.74270078]
[1739530349134,40.8,2706.0,2705.9,1.31600078]
[1739530349328,40.8,2706.0,2705.9,0.00369078]
[1739530349640,40.8,2706.0,2705.9,0.74270078]
[1739530350131,40.8,2706.0,2705.9,0.00369078]
[1739530350832,41.3881,2706.0,2705.9,0.00369078]
[1739530351334,42.12709,2706.0,2705.9,0.00369078]
[1739530351534,41.9716,2706.0,2705.9,0.00369078]
[1739530351732,41.3881,2706.0,2705.9,0.74270078]
[1739530352122,41.3881,2706.0,2705.9,0.00369078]
[1739530352327,42.12709,2706.0,2705.9,0.00369078]
[1739530352538,41.3881,2706.0,2705.9,0.00369078]
[1739530353639,40.8,2706.0,2705.9,0.74270078]
[1739530354734,40.8,2706.0,2705.9,1.31418252]
[1739530354938,40.8,2706.0,2705.9,1.86928252]
[1739530358537,40.8,2706.0,2705.9,5.07708252]
[1739530359037,40.8,2706.0,2705.9,5.07725209]
[1739530359636,40.8,2706.0,2705.9,5.0772453]
[1739530361030,40.8,2706.0,2705.9,5.07723831]
[1739530363442,40.8,2706.0,2705.9,3.78312831]
[1739530363643,41.53899,2706.0,2705.9,3.21149078]
[1739530364243,40.8,2706.0,2705.9,3.21149078]
[1739530364536,41.53899,2706.0,2705.9,3.21149078]
[1739530364741,42.12959,2706.0,2705.9,3.21149078]
[1739530365044,41.3906,2706.0,2705.9,3.21149078]
[1739530365241,40.8,2706.0,2705.9,3.78317718]
[1739530365442,40.8,2706.0,2705.9,4.52218718]
[1739530366039,40.8,2706.0,2705.9,3.95050078]
[1739530366234,40.8,2706.0,2705.9,4.52220331]
[1739530367146,40.8,2706.0,2705.9,3.78319331]
[1739530367743,40.8,2706.0,2705.9,3.21149078]
[1739530368647,40.8,2706.0,2705.9,3.95050078]
[1739530368941,40.8,2706.0,2705.6,3.2078]
[1739530369147,3.2078,2705.8,2705.2,2.23026614]
[1739530369341,0.559,2705.7,2705.4,3.2078]
[1739530369542,0.559,2705.7,2705.5,2.23026614]
[1739530370047,0.559,2705.7,2705.6,0.73909]
[1739530370741,41.359,2705.7,2705.6,0.73909]
[1739530372042,40.8,2705.7,2705.6,0.73909]
[1739530372346,40.8,2705.7,2705.6,1.31092671]
[1739530372541,40.8,2705.7,2705.6,0.73909]
[1739530372742,40.8,2705.7,2705.6,1.31095073]
[1739530373647,40.8,2705.7,2705.6,1.31098378]
[1739530375344,40.8,2705.7,2705.6,1.3110318]
[1739530379152,40.8,2705.7,2705.6,1.31095721]
[1739530382255,40.8,2705.7,2705.6,0.73909]
[1739530382563,40.8,2705.7,2705.6,1.31090199]
[1739530382961,40.8,2705.7,2705.6,1.310898]
[1739530384466,40.8,2705.7,2705.6,0.571808]
[1739530384661,40.8,2705.7,2705.6,1.310898]
[1739530385564,40.8,2705.7,2705.6,0.571808]
[1739530386066,41.3756,2705.7,2705.6,0.571808]
[1739530386766,41.3756,2705.7,2705.6,1.310898]
[1739530387465,41.3756,2705.7,2705.6,0.571808]
[1739530388553,42.11467,2705.7,2705.6,0.571808]
[1739530389370,41.3756,2705.7,2705.4,3.2078]
[1739530389669,1.86292,2705.6,2705.5,0.57176785]
[1739530390061,42.66292,2705.6,2705.5,0.57176785]
[1739530390265,42.66292,2705.6,2705.4,3.2078]
[1739530391959,41.9238,2705.6,2705.4,3.2078]
[1739530392374,42.66291,2705.6,2705.4,3.2078]
[1739530392667,41.9238,2705.6,2705.4,3.2078]
[1739530392863,41.9238,2705.6,2705.3,0.00553618]
[1739530393067,41.9238,2705.6,2705.0,4.2078]
[1739530393068,0.73923,2705.1,2705.0,4.2078]
[1739530393268,0.73923,2705.1,2705.0,1.0]
[1739530393662,41.53923,2705.1,2705.0,1.0]
[1739530396876,40.8,2705.1,2705.0,1.0]
[1739530397176,41.53923,2705.1,2705.0,1.0]
[1739530397574,40.8,2705.1,2705.0,1.73926]
[1739530397768,40.8,2705.1,2705.0,1.0]
[1739530398168,40.8,2705.1,2705.0,1.73926]
[1739530398476,41.9613,2705.1,2705.0,1.73926]
[1739530398778,41.9613,2705.1,2705.0,1.0]
[1739530399278,41.9613,2705.1,2705.0,1.73926]
[1739530399479,40.8,2705.1,2705.0,1.73926]
[1739530399687,40.8,2705.1,2705.0,2.31826]
[1739530399876,40.8,2705.1,2705.0,3.44396]
[1739530401274,40.8,2705.1,2705.0,1.579]
[1739530403178,40.8,2705.1,2705.0,2.31826]
[1739530404074,40.8,2705.1,2705.0,2.88826711]
[1739530407480,40.8,2705.1,2705.0,2.8884829]
[1739530408576,40.8,2705.1,2705.0,2.88852014]
[1739530410383,40.8,2705.1,2705.0,1.579]
[1739530410682,40.8,2705.1,2705.0,1.0]
[1739530411086,41.53923,2705.1,2705.0,1.0]
[1739530414478,40.8,2705.1,2705.0,1.73926]
[1739530414679,40.8,2705.1,2705.0,2.84386]
[1739530417378,40.8,2705.1,2705.0,2.1046]
[1739530417785,40.8,2705.1,2705.0,2.84386]
[1739530417981,40.8,2705.1,2705.0,2.1046]
[1739530419587,40.8,2705.1,2705.0,1.5475]
[1739530421487,40.8,2705.1,2705.0,2.28676]
[1739530422385,40.8,2705.1,2705.0,2.85825369]
[1739530423386,40.8,2705.1,2705.0,2.11899369]
[1739530423589,40.8,2705.1,2705.0,1.5475]
[1739530424093,40.8,2705.1,2705.0,2.28676]
[1739530425190,40.8,2705.1,2705.0,1.5475]
[1739530425394,40.8,2705.1,2705.0,2.28676]
[1739530425594,40.8,2705.1,2705.0,2.85832967]
[1739530425991,40.8,2705.1,2705.0,2.85832832]
[1739530427386,40.8,2705.1,2705.0,2.85840736]
[1739530429299,40.8,2705.1,2705.0,2.85844399]
[1739530431999,40.8,2705.1,2705.0,6.06624399]
[1739530432201,40.8,2705.1,2705.0,5.51874399]
[1739530432498,40.8,2705.1,2705.0,4.94706]
[1739530432694,40.8,2705.1,2705.0,4.2078]
[1739530432899,40.8,2705.1,2705.0,4.94706]
[1739530433202,40.8,2705.1,2705.0,5.51873951]
[1739530433701,40.8,2705.1,2705.0,4.77947951]
[1739530433998,40.8,2705.1,2705.0,4.2078]
[1739530434393,40.8,2705.1,2705.0,4.77959776]
[1739530434997,40.8,2705.1,2705.0,4.77959846]
[1739530435500,41.53923,2705.1,2705.0,4.77971007]
[1739530435702,40.8,2705.1,2705.0,4.77971007]
[1739530436204,41.53923,2705.1,2705.0,1.0]
[1739530436397,0.73944,2704.4,2704.2,3.2078]
[1739530436600,0.73944,2704.4,2704.3,0.57202924]
[1739530436804,0.569,2704.8,2704.3,0.57204556]
[1739530437097,0.73941,2704.5,2704.2,3.2078]
[1739530437309,40.8,2704.3,2704.2,3.2078]
[1739530437500,40.8,2704.3,2704.2,3.77693288]
[1739530437700,40.8,2704.3,2704.2,4.51641288]
[1739530438206,40.8,2704.3,2704.2,3.77693288]
[1739530440398,40.8,2704.3,2704.2,6.00719902]
[1739530440593,40.8,2704.3,2704.2,7.32187902]
[1739530442306,40.8,2704.3,2704.2,7.59319902]
[1739530443009,40.8,2704.3,2704.2,8.33267902]
[1739530445504,40.8,2704.3,2704.2,8.33199437]
[1739530445709,40.8,2704.3,2704.2,8.33199089]
[1739530446211,40.8,2704.3,2704.2,8.33199247]
[1739530446612,40.8,2704.3,2704.2,14.33199247]
[1739530447505,40.8,2704.3,2704.2,14.33195016]
[1739530447906,40.8,2704.3,2704.2,6.74595016]
[1739530448208,40.8,2704.3,2704.2,8.33195016]
[1739530449416,40.8,2704.3,2704.2,8.33195197]
[1739530452413,40.8,2704.3,2704.2,14.33195197]
[1739530453209,0.00554672,2704.5,2704.4,0.73942]
[1739530453409,0.00554672,2704.5,2704.4,1.30782583]
[1739530454218,40.80554672,2704.5,2704.4,1.30782583]
[1739530454918,40.80554672,2704.5,2704.4,1.30785546]
[1739530455115,0.5528,2705.3,2705.2,0.7392]
[1739530455309,0.5917,2705.5,2705.4,0.73915]
[1739530455514,0.5917,2705.5,2705.3,1.32185]
[1739530455912,0.5917,2705.5,2705.3,2.81296614]
[1739530456314,0.5917,2705.5,2705.4,0.73915]
[1739530456616,41.3917,2705.5,2705.3,2.81296614]
[1739530456815,41.3917,2705.5,2705.4,0.73915]
[1739530457124,41.3917,2705.5,2705.3,3.55211614]
[1739530457420,41.3917,2705.5,2705.4,0.73915]
[1739530458221,41.3917,2705.5,2705.3,2.81296614]
[1739530458821,41.3917,2705.5,2705.4,0.73915]
[1739530459221,41.3917,2705.5,2705.3,2.81296614]
[1739530459416,41.3917,2705.5,2705.3,3.55212614]
[1739530459628,41.3917,2705.5,2705.3,2.96942614]
[1739530460422,41.3917,2705.5,2705.2,3.2078]
[1739530460423,42.13083,2705.5,2705.2,3.2078]
[1739530460919,41.3917,2705.5,2705.2,3.2078]
[1739530461116,42.13084,2705.5,2705.2,3.2078]
[1739530461518,41.3917,2705.5,2705.1,0.00554672]
[1739530461717,4.66981614,2705.5,2704.6,3.94716]
[1739530461922,0.73928,2705.0,2704.6,3.94715]
[1739530462116,40.8,2704.7,2704.6,3.94715]
[1739530462920,40.8,2704.7,2704.6,4.51502751]
[1739530463923,40.8,2704.7,2704.6,5.09292751]
[1739530464221,40.8,2704.7,2704.3,3.2078]
[1739530464820,40.8,2704.7,2704.3,3.94723]
[1739530465021,0.5524,2704.6,2704.4,0.73941]
[1739530465423,0.5524,2704.6,2704.3,3.2078]
[1739530465625,0.5524,2704.6,2704.3,3.94724]
[1739530465823,0.5524,2704.6,2704.3,3.2078]
[1739530466021,0.5396,2704.5,2704.3,3.2078]
[1739530466423,0.5568,2704.4,2704.3,3.2078]
[1739530467029,41.3568,2704.4,2704.3,3.2078]
[1739530467425,40.8,2704.4,2704.3,3.94725]
[1739530467729,40.8,2704.4,2704.3,4.51508145]
[1739530468431,40.8,2704.4,2704.3,10.51508145]
[1739530468730,40.8,2704.4,2704.3,4.51508145]
[1739530469031,1.0983,2705.1,2705.0,0.73926]
[1739530469231,1.0983,2705.1,2705.0,6.17732614]
[1739530469637,1.0983,2705.1,2705.0,5.43806614]
[1739530470129,41.8983,2705.1,2705.0,6.17732614]
[1739530470533,41.8983,2705.1,2705.0,6.74524456]
[1739530470727,41.8983,2705.1,2705.0,6.7452423]
[1739530470922,40.8,2705.1,2705.0,6.7452423]
[1739530471531,40.8,2705.1,2705.0,6.74518829]
[1739530473539,40.8,2705.1,2705.0,6.74513761]
[1739530475435,40.8,2705.1,2705.0,6.74520108]
[1739530477130,40.8,2705.1,2705.0,6.17732614]
[1739530477330,40.8,2705.1,2705.0,6.74517927]
[1739530479034,40.8,2705.1,2705.0,6.7451796]
[1739530485243,40.8,2705.1,2705.0,6.74513782]
[1739530488552,40.8,2705.1,2705.0,6.74504312]
[1739530490250,40.8,2705.1,2705.0,6.17732614]
[1739530490446,40.8,2705.1,2705.0,6.74500364]
[1739530492946,40.8,2705.1,2705.0,6.74505743]
[1739530494148,40.8,2705.1,2705.0,6.74508194]
[1739530499047,40.8,2705.1,2705.0,4.5148158]
[1739530501853,40.8,2705.1,2705.0,4.51661094]
[1739530503552,40.8,2705.1,2705.0,3.94706]
[1739530503754,40.8,2705.1,2705.0,4.5165945]
[1739530504857,40.8,2705.1,2705.0,4.51659389]
[1739530508457,40.8,2705.1,2705.0,4.51653507]
[1739530508659,40.8,2705.1,2705.0,4.51653734]
[1739530514752,40.8,2705.1,2705.0,4.51666562]
[1739530516261,40.8,2705.1,2705.0,5.36140562]
[1739530516460,40.8,2705.1,2705.0,4.7918]
[1739530516661,40.8,2705.1,2705.0,6.10065624]
[1739530519762,40.8,2705.1,2705.0,6.100484]
[1739530521769,40.8,2705.1,2705.0,6.10040705]
[1739530523463,40.8,2705.1,2705.0,6.10032152]
[1739530523663,40.8,2705.1,2705.0,7.13356454]
[1739530524465,40.8,2705.1,2705.0,8.29516454]
[1739530525060,40.8,2705.1,2705.0,3.77706152]
[1739530525267,41.3398,2705.1,2705.0,3.77706152]
[1739530525564,41.3398,2705.1,2705.0,3.2078]
[1739530526360,41.3398,2705.1,2704.6,4.24104302]
[1739530526667,0.73929,2704.9,2704.6,4.24104302]
[1739530527258,40.8,2704.7,2704.6,4.24104302]
[1739530527464,40.8,2704.7,2704.6,4.8100407]
[1739530527665,40.8,2704.7,2704.6,3.77679768]
[1739530528065,40.8,2704.7,2704.6,3.2078]
[1739530529765,40.8,2704.7,2704.6,3.94717]
[1739530529965,40.8,2704.7,2704.6,6.7554084]
[1739530543991,40.8,2704.7,2704.6,6.75567582]
[1739530546386,1.0954,2705.6,2704.6,6.01630582]
[1739530546587,1.0954,2705.6,2705.3,6.18690606]
[1739530546894,1.0954,2705.6,2705.4,0.56855976]
[1739530547094,1.0954,2705.6,2705.3,6.18690606]
[1739530547296,1.0954,2705.6,2705.4,0.56870305]
[1739530547497,1.0954,2705.6,2705.4,0.73913]
[1739530547693,1.0954,2705.6,2705.4,1.84033]
[1739530547886,40.8,2705.5,2705.4,1.1012]
[1739530548093,40.8,2705.5,2705.4,1.11774394]
[1739530548290,40.8,2705.5,2705.3,3.2078]
[1739530548589,0.5402,2705.4,2705.3,3.2078]
[1739530549190,41.3402,2705.4,2705.3,3.2078]
[1739530550199,41.3402,2705.4,2705.3,4.51558357]
[1739530550899,41.3402,2705.4,2705.3,3.2078]
[1739530551095,41.3402,2705.4,2705.3,3.94698]
[1739530551699,41.3402,2705.4,2705.3,3.77635505]
[1739530551902,41.3402,2705.4,2705.3,3.2078]
[1739530552098,41.3402,2705.4,2705.3,3.94698]
[1739530552799,42.07935,2705.4,2705.3,3.2078]
[1739530555997,41.3402,2705.4,2705.3,3.94698]
[1739530556296,41.3402,2705.4,2705.3,3.2078]
[1739530557604,42.07935,2705.4,2705.3,3.2078]
[1739530560201,0.73926,2705.0,2704.9,3.2078]
[1739530560405,0.73925,2705.1,2704.9,3.94708]
[1739530560605,1.6982,2705.0,2704.9,3.94708]
[1739530560905,42.4982,2705.0,2704.9,3.94709]
[1739530561297,43.23746,2705.0,2704.9,3.2078]
[1739530561501,42.4982,2705.0,2704.9,3.94709]
[1739530561704,40.8,2705.0,2704.9,3.94709]
[1739530562700,40.8,2705.0,2704.9,4.51612103]
[1739530562910,40.8,2705.0,2704.9,5.09612103]
[1739530564411,40.8,2705.0,2704.9,4.35683103]
[1739530565208,40.8,2705.0,2704.9,5.09612103]
[1739530567197,0.00554672,2705.7,2705.3,0.73917]
[1739530567401,0.00554672,2705.7,2705.4,6.12067709]
[1739530567597,0.74462672,2705.7,2705.4,5.55164606]
[1739530567811,0.00554672,2705.7,2705.4,5.55164606]
[1739530568207,0.00554672,2705.7,2705.5,0.56885214]
[1739530568407,0.00554672,2705.7,2705.4,5.55164606]
[1739530568907,0.00554672,2705.7,2705.4,6.29078606]
[1739530569110,40.8,2705.5,2705.4,6.29078606]
[1739530569304,40.8,2705.5,2705.4,6.85962961]
[1739530569805,40.8,2705.5,2705.4,6.85963961]
[1739530575714,40.8,2705.5,2705.4,6.85917631]
[1739530577109,40.8,2705.5,2705.4,6.8590252]
[1739530579016,40.8,2705.5,2705.4,6.85876191]
[1739530582618,40.8,2705.5,2705.4,6.29079606]
[1739530582830,40.8,2705.5,2705.4,6.85840274]
[1739530583230,40.8,2705.5,2705.4,5.26640274]
[1739530583421,40.8,2705.5,2705.4,6.11425274]
[1739530583726,40.8,2705.5,2705.4,5.54664606]
[1739530584321,40.8,2705.5,2705.4,6.28579606]
[1739530584523,40.8,2705.5,2705.4,5.54664606]
[1739530584718,40.8,2705.5,2705.3,3.2078]
[1739530584929,0.5399,2705.4,2705.3,3.2078]
[1739530585333,41.3399,2705.4,2705.3,3.2078]
[1739530590141,41.3399,2705.4,2705.3,3.94698]
[1739530590530,41.3399,2705.4,2705.3,3.2078]
[1739530591644,41.3399,2705.4,2705.3,3.94698]
[1739530592343,41.3399,2705.4,2705.3,3.2078]
[1739530594140,42.07905,2705.4,2705.3,3.2078]
[1739530596943,0.73919,2705.3,2705.1,2.97917606]
[1739530597146,1.1639,2705.2,2704.9,2.6797]
[1739530597446,1.90312,2705.2,2705.0,0.73925]
[1739530597646,40.8,2705.1,2705.0,1.77281832]
[1739530599950,40.8,2705.1,2705.0,1.03355832]
[1739530600841,40.8,2705.1,2705.0,2.34088776]
[1739530601551,40.8,2705.1,2705.0,1.03355832]
[1739530601751,40.8,2705.1,2704.9,3.41898]
[1739530602051,40.8,2705.1,2704.9,2.6797]
[1739530602242,40.8,2705.1,2704.9,3.41898]
[1739530602443,40.8,2705.1,2704.9,2.6797]
[1739530602642,40.8,2705.1,2705.0,1.30726442]
[1739530602838,40.8,2705.1,2705.0,0.56800442]
[1739530604246,40.8,2705.1,2705.0,1.30726442]
[1739530607148,40.8,2705.1,2705.0,1.30737451]
[1739530610247,40.8,2705.1,2705.0,4.51517451]
[1739530610844,40.8,2705.1,2705.0,4.51565151]
[1739530611355,40.8,2705.1,2705.0,4.51565206]
[1739530612550,40.8,2705.1,2705.0,1.30785206]
[1739530612951,40.8,2705.1,2705.0,5.07855206]
[1739530613254,40.8,2705.1,2705.0,5.07892799]
[1739530620463,40.8,2705.1,2705.0,5.07902753]
[1739530621156,40.8,2705.1,2705.0,6.66402753]
[1739530621655,40.8,2705.1,2705.0,7.69717465]
[1739530622259,40.8,2705.1,2705.0,6.11217465]
[1739530622555,40.8,2705.1,2705.0,7.69717465]
[1739530623162,40.8,2705.1,2705.0,5.37291465]
[1739530623366,40.8,2705.1,2705.0,6.39401465]
[1739530624359,40.8,2705.1,2705.0,4.81001465]
[1739530624557,41.8996,2705.1,2705.0,4.81001465]
[1739530625556,41.8996,2705.1,2705.0,3.77686753]
[1739530628563,42.63883,2705.1,2705.0,0.56906753]
[1739530628758,42.63883,2705.1,2704.7,6.18653057]
[1739530628960,1.83883,2705.1,2704.8,0.56912962]
[1739530629161,1.83883,2705.1,2704.7,2.97873057]
[1739530629563,1.83883,2705.1,2704.8,0.56900342]
[1739530629758,1.83883,2705.1,2704.8,3.2078]
[1739530629964,40.8,2704.9,2704.8,3.2078]
[1739530630264,40.8,2704.9,2704.8,4.51610795]
[1739530630962,40.8,2704.9,2704.8,4.51601005]
[1739530631669,40.8,2704.9,2704.8,0.56890005]
[1739530631965,40.8,2704.9,2704.5,4.7928]
[1739530632166,40.8,2704.9,2704.6,1.30817602]
[1739530632167,0.5397,2704.8,2704.6,1.30817602]
[1739530632362,1.1061,2704.7,2704.5,3.2078]
[1739530632570,1.1061,2704.7,2704.3,20.945]
[1739530632761,1.84544,2704.7,2704.4,0.56867882]
[1739530632962,1.84544,2704.7,2704.3,21.68443]
[1739530633571,0.73938,2704.6,2704.3,19.36]
[1739530633763,1.1061,2704.7,2704.3,20.09944]
[1739530634164,1.1061,2704.7,2704.6,0.73937]
[1739530634462,1.1061,2704.7,2704.5,3.2078]
[1739530634662,1.1061,2704.7,2704.4,2.23940057]
[1739530634868,40.8,2704.6,2704.4,2.23940057]
[1739530635469,40.8,2704.6,2704.5,0.73939]
[1739530635768,40.8,2704.6,2704.4,2.97880057]
[1739530635975,40.8,2704.6,2704.4,2.23940057]
[1739530636165,41.53939,2704.6,2704.3,19.36]
[1739530636669,40.8,2704.6,2704.3,19.36]
[1739530636967,40.8,2704.6,2704.5,0.73939]
[1739530637273,40.8,2704.6,2704.4,0.73942]
[1739530637470,40.8,2704.6,2704.4,0.7394]
[1739530638567,41.53938,2704.6,2704.3,20.09944]
[1739530638771,40.8,2704.6,2704.3,20.09944]
[1739530639772,0.73937,2704.6,2704.3,20.09944]
[1739530640473,40.8,2704.4,2704.3,20.09944]
[1739530640670,40.8,2704.4,2704.3,20.09945]
[1739530641570,40.8,2704.4,2704.3,19.36]
[1739530642067,40.8,2704.4,2704.3,20.09945]
[1739530642274,40.8,2704.4,2704.3,19.36]
[1739530642573,40.8,2704.4,2704.3,20.09945]
[1739530642975,40.8,2704.4,2704.3,19.36]
[1739530643572,40.8,2704.4,2704.3,20.09945]
[1739530644177,40.8,2704.4,2704.3,19.36]
[1739530645770,40.8,2704.4,2704.3,20.09945]
[1739530646079,40.8,2704.4,2704.3,19.36]
[1739530646275,40.8,2704.4,2704.3,20.09945]
[1739530646475,40.8,2704.4,2704.3,19.36]
[1739530647166,40.8,2704.4,2704.3,20.09945]
[1739530648178,40.8,2704.4,2704.3,19.36]
[1739530648390,40.8,2704.4,2704.3,20.09945]
[1739530649472,40.8,2704.4,2704.3,19.36]
[1739530650368,41.53942,2704.4,2704.3,19.36]
[1739530650676,41.53943,2704.4,2704.1,3.2078]
[1739530650877,0.5404,2704.3,2704.1,3.2078]
[1739530651272,40.8,2704.2,2704.0,1.1141]
[1739530651469,40.8,2704.2,2703.8,3.2078]
[1739530651675,0.73954,2704.0,2703.8,3.2078]
[1739530652079,0.5404,2703.9,2703.8,3.2078]
[1739530652380,0.5404,2703.9,2703.6,0.73963]
[1739530652576,0.5404,2703.9,2703.5,7.17910057]
[1739530652775,40.8,2703.7,2703.6,1.30766142]
[1739530653287,40.8,2703.7,2703.6,1.30765843]
[1739530653482,40.8,2703.7,2703.6,0.73964]
[1739530654186,40.8,2703.7,2703.0,3.2078]
[1739530654479,0.73966,2703.6,2703.2,0.5804]
[1739530654685,41.53964,2703.7,2703.2,0.5804]
[1739530655289,40.8,2703.7,2703.2,0.5804]
[1739530655481,40.8,2703.7,2703.3,4.3467]
[1739530655981,40.8,2703.7,2703.6,3.94744]
[1739530656390,40.8,2703.7,2703.6,4.54294]
[1739530658086,40.8,2703.7,2703.6,3.8033]
[1739530658382,40.8,2703.7,2703.6,5.110512]
[1739530664288,40.8,2703.7,2703.6,5.11089891]
[1739530665087,0.00554672,2704.3,2703.6,12.61065948]
[1739530665392,0.00554672,2704.3,2704.2,6.18668057]
[1739530665691,0.00554672,2704.3,2704.2,8.33963948]
[1739530666089,40.80554672,2704.3,2704.2,8.33963948]
[1739530666385,40.80554672,2704.3,2704.2,7.60015948]
[1739530666586,40.80554672,2704.3,2704.2,4.7928]
[1739530666780,40.80554672,2704.3,2704.2,1.585]
[1739530666982,40.80554672,2704.3,2704.2,4.7928]
[1739530667590,40.80554672,2704.3,2704.2,8.35838057]
[1739530667787,40.80554672,2704.3,2704.2,8.92641568]
[1739530667989,40.80554672,2704.3,2704.2,8.92640483]
[1739530669896,40.80554672,2704.3,2704.2,8.92641361]
[1739530670395,40.80554672,2704.3,2704.2,8.92641272]
[1739530672995,40.80286116,2704.3,2704.2,8.92641272]
[1739530673391,40.80286116,2704.3,2704.2,3.2078]
[1739530673694,40.80286116,2704.3,2704.2,4.7938]
[1739530673997,40.80286116,2704.3,2704.2,1.586]
[1739530674292,40.80286116,2704.3,2704.0,0.5470207]
[1739530674596,0.00286116,2704.3,2704.0,2.8725507]
[1739530674795,0.00286116,2704.3,2704.0,1.5887207]
[1739530674988,40.8,2704.1,2704.0,2.3282507]
[1739530675390,40.8,2704.1,2704.0,0.0027207]
[1739530676293,41.5395,2704.1,2704.0,0.0027207]
[1739530678299,40.8,2704.1,2704.0,0.0027207]
[1739530679196,40.8,2704.1,2704.0,0.7422507]
[1739530680701,40.8,2704.1,2704.0,0.0027207]
[1739530681110,40.8,2704.1,2704.0,0.7422507]
[1739530685297,40.8,2704.1,2704.0,0.0027207]
[1739530686206,41.5395,2704.1,2704.0,0.0027207]
[1739530689708,40.8,2704.1,2704.0,0.0027207]
[1739530689909,40.8,2704.1,2704.0,0.7422507]
[1739530692409,40.8,2704.1,2704.0,0.0027207]
[1739530693314,40.8,2704.1,2704.0,0.7422507]
[1739530693609,41.5395,2704.1,2704.0,0.0027207]
[1739530693809,40.8,2704.1,2704.0,0.0027207]
[1739530694513,40.8,2704.1,2704.0,0.7422507]
[1739530694708,40.8,2704.1,2704.0,0.0027207]
[1739530695209,40.8,2704.1,2704.0,0.5729207]
[1739530696011,40.8,2704.1,2704.0,1.3124507]
[1739530696605,40.8,2704.1,2704.0,1.1248207]
[1739530697514,40.8,2704.1,2704.0,1.8643507]
[1739530699115,40.8,2704.1,2704.0,1.1248207]
[1739530700015,41.5395,2704.1,2704.0,1.1248207]
[1739530700214,40.8,2704.1,2704.0,1.1248207]
[1739530700410,40.8,2704.1,2704.0,0.0027207]
[1739530700609,40.8,2704.1,2704.0,0.7422507]
[1739530702608,40.8,2704.1,2704.0,0.0027207]
[1739530702913,41.5395,2704.1,2704.0,0.0027207]
[1739530703410,42.0799,2704.1,2704.0,0.0027207]
[1739530708623,40.8,2704.1,2704.0,0.7422507]
[1739530708820,40.8,2704.1,2704.0,1.31171971]
[1739530712613,40.8,2704.1,2704.0,0.57218971]
[1739530712824,40.8,2704.1,2704.0,0.0027207]
[1739530713017,40.8,2704.1,2704.0,0.57191699]
[1739530715620,40.8,2704.1,2704.0,1.31144699]
[1739530716028,40.8,2704.1,2704.0,0.57191699]
[1739530717228,41.5395,2704.1,2704.0,0.0027207]
[1739530717528,40.8,2704.1,2704.0,0.0027207]
[1739530718728,40.8,2704.1,2704.0,0.7422507]
[1739530718928,40.8,2704.1,2704.0,1.31136036]
[1739530721023,40.8,2704.1,2704.0,0.57183036]
[1739530721623,40.8,2704.1,2704.0,0.5718175]
[1739530722223,40.8,2704.1,2704.0,2.1568175]
[1739530723732,40.8,2704.1,2704.0,2.15681773]
[1739530724331,40.8,2704.1,2704.0,0.57181773]
[1739530725224,40.8,2704.1,2704.0,1.31134773]
[1739530727430,40.8,2704.1,2704.0,1.31134487]
[1739530729325,40.8,2704.1,2704.0,1.31132609]
[1739530731134,40.8,2704.1,2704.0,1.31133299]
[1739530733037,40.8,2704.1,2704.0,1.31131784]
[1739530733633,40.8,2704.1,2704.0,1.31134082]
[1739530734937,40.8,2704.1,2704.0,1.31131049]
[1739530736737,40.8,2704.1,2704.0,2.89631049]
[1739530737138,40.8,2704.1,2704.0,8.89631049]
[1739530738437,40.8,2704.1,2704.0,2.89631049]
[1739530738640,40.8,2704.1,2704.0,8.3272507]
[1739530738938,40.8,2704.1,2704.0,8.89620809]
[1739530739328,40.8,2704.1,2704.0,2.89620809]
[1739530739527,40.8,2704.1,2704.0,8.89620809]
[1739530740141,40.8,2704.1,2704.0,2.89620809]
[1739530740334,40.8,2704.1,2704.0,8.89620809]
[1739530742039,0.00286116,2704.3,2704.2,0.73948]
[1739530742245,0.00286116,2704.3,2704.2,6.75563796]
[1739530743037,40.80286116,2704.3,2704.2,6.75563796]
[1739530744043,40.80286116,2704.3,2704.2,6.75515124]
[1739530749745,40.80286116,2704.3,2704.2,6.75472582]
[1739530751741,40.80286116,2704.3,2704.2,6.75463889]
[1739530753750,40.80286116,2704.3,2704.2,6.75465139]
[1739530759760,40.80286116,2704.3,2704.2,6.5822492]
[1739530763458,40.80286116,2704.3,2704.2,6.01427838]
[1739530763760,40.80286116,2704.3,2704.2,6.58337858]
[1739530766066,40.80286116,2704.3,2704.2,5.54987939]
[1739530767068,1.6551,2705.0,2704.7,0.73933]
[1739530767267,1.6551,2705.0,2704.9,1.03349919]
[1739530767564,1.6551,2705.0,2704.9,1.60259939]
[1739530767969,42.4551,2705.0,2704.9,1.60259939]
[1739530771774,42.4551,2705.0,2704.9,2.34188939]
[1739530771970,42.4551,2705.0,2704.9,1.60259939]
[1739530772377,42.4551,2705.0,2704.9,0.5691002]
[1739530772868,42.4551,2705.0,2704.9,1.3083902]
[1739530773266,42.4551,2705.0,2704.9,0.5691002]
[1739530773674,42.4551,2705.0,2704.9,1.3083902]
[1739530774272,42.4551,2705.0,2704.9,0.5691002]
[1739530774880,43.19436,2705.0,2704.9,0.5691002]
[1739530775172,42.4551,2705.0,2704.9,1.3083902]
[1739530777181,42.4551,2705.0,2704.9,1.30914433]
[1739530777875,42.4551,2705.0,2704.9,0.73929]
[1739530779968,42.4551,2705.0,2704.8,1.585]
[1739530780174,1.6551,2705.0,2704.9,0.73929]